{"text_format":"1","workbook":"xlsx","n_sheets":3,"sheets":["Лист1","Лист2","Лист3"],"not_rendered":{"charts":0,"images":0,"macros":1,"external_links":0,"defined_names":0,"comments":0,"pivot_tables":0},"unopened":[],"bounds":{"document_bytes":16777216,"sheet_cells":100000,"rows_first":2000,"rows_last":500,"rows_between":2000,"halvings":0,"cell_chars":16384,"cell_head_chars":4096},"cells_cut":0,"cells_raw":0,"read":"whole","date_system":"1900"}

{"sheet":"Лист1","index":0,"n_rows":510,"n_cols":2,"rows_kept":510,"cut":false,"hidden":false,"merged":[]}
["Труба железобетонная безнапорная Т100.50-2 (ГОСТ 6482-88)",{"$f":"\"\"\"\"&рег_зам2(A1,\"((Т|ТБ)\\d+.\\d+[^\\s]+)\",\"\"\"$1\"\"\")&\"\"\"\"","v":"\"Труба железобетонная безнапорная \"Т100.50-2\" (ГОСТ 6482-88)\""}]
["Труба железобетонная безнапорная Т100.50-3 (ГОСТ 6482-88)",{"$f":"\"\"\"\"&рег_зам2(A2,\"((Т|ТБ)\\d+.\\d+[^\\s]+)\",\"\"\"$1\"\"\")&\"\"\"\"","v":"\"Труба железобетонная безнапорная \"Т100.50-3\" (ГОСТ 6482-88)\""}]
["Труба железобетонная безнапорная Т120.25-2 (ГОСТ 6482-88)","\"Труба железобетонная безнапорная \"Т120.25-2\" (ГОСТ 6482-88)\""]
["Труба железобетонная безнапорная Т120.25-3 (ГОСТ 6482-88)","\"Труба железобетонная безнапорная \"Т120.25-3\" (ГОСТ 6482-88)\""]
["Труба железобетонная безнапорная Т140.25-2 (ГОСТ 6482-88)","\"Труба железобетонная безнапорная \"Т140.25-2\" (ГОСТ 6482-88)\""]
["Труба железобетонная безнапорная Т140.25-3 (ГОСТ 6482-88)","\"Труба железобетонная безнапорная \"Т140.25-3\" (ГОСТ 6482-88)\""]
["Труба железобетонная безнапорная Т160.25-2 (ГОСТ 6482-88)","\"Труба железобетонная безнапорная \"Т160.25-2\" (ГОСТ 6482-88)\""]
["Труба железобетонная безнапорная Т160.25-3 (ГОСТ 6482-88)","\"Труба железобетонная безнапорная \"Т160.25-3\" (ГОСТ 6482-88)\""]
["Труба железобетонная безнапорная Т40.50-3 (ГОСТ 6482-88)","\"Труба железобетонная безнапорная \"Т40.50-3\" (ГОСТ 6482-88)\""]
["Труба железобетонная безнапорная Т50.50-3 (ГОСТ 6482-88)","\"Труба железобетонная безнапорная \"Т50.50-3\" (ГОСТ 6482-88)\""]
["Труба железобетонная безнапорная Т60.50-2 (ГОСТ 6482-88)","\"Труба железобетонная безнапорная \"Т60.50-2\" (ГОСТ 6482-88)\""]
["Труба железобетонная безнапорная Т60.50-3 (ГОСТ 6482-88)","\"Труба железобетонная безнапорная \"Т60.50-3\" (ГОСТ 6482-88)\""]
["Труба железобетонная безнапорная Т80.50-2 (ГОСТ 6482-88)","\"Труба железобетонная безнапорная \"Т80.50-2\" (ГОСТ 6482-88)\""]
["Труба железобетонная безнапорная Т80.50-3 (ГОСТ 6482-88)","\"Труба железобетонная безнапорная \"Т80.50-3\" (ГОСТ 6482-88)\""]
["Труба железобетонная безнапорная ТБ100.50-3 (ГОСТ 6482-88)","\"Труба железобетонная безнапорная \"ТБ100.50-3\" (ГОСТ 6482-88)\""]
["Труба железобетонная безнапорная ТБ120.50-3 (ГОСТ 6482-88)","\"Труба железобетонная безнапорная \"ТБ120.50-3\" (ГОСТ 6482-88)\""]
["Труба железобетонная безнапорная ТБ30.25-2 (ГОСТ 6482-88)","\"Труба железобетонная безнапорная \"ТБ30.25-2\" (ГОСТ 6482-88)\""]
["Труба железобетонная безнапорная ТБ40.25-2 (ГОСТ 6482-88)","\"Труба железобетонная безнапорная \"ТБ40.25-2\" (ГОСТ 6482-88)\""]
["Труба железобетонная безнапорная ТБ50.25-2 (ГОСТ 6482-88)","\"Труба железобетонная безнапорная \"ТБ50.25-2\" (ГОСТ 6482-88)\""]
["Труба железобетонная безнапорная ТБ60.25-2 (ГОСТ 6482-88)","\"Труба железобетонная безнапорная \"ТБ60.25-2\" (ГОСТ 6482-88)\""]
["Труба железобетонная безнапорная ТБ60.50-3 (ГОСТ 6482-88)","\"Труба железобетонная безнапорная \"ТБ60.50-3\" (ГОСТ 6482-88)\""]
["Труба железобетонная безнапорная ТБ80.25-2 (ГОСТ 6482-88)","\"Труба железобетонная безнапорная \"ТБ80.25-2\" (ГОСТ 6482-88)\""]
["Труба железобетонная безнапорная ТБ80.50-2 (ГОСТ 6482-88)","\"Труба железобетонная безнапорная \"ТБ80.50-2\" (ГОСТ 6482-88)\""]
["Блок открылка железобетонный К14Л (ТП 503-7-015.90)"]
["Блок открылка железобетонный К14П (ТП 503-7-015.90)"]
["Блок открылка железобетонный К16Л (ТП 503-7-015.90)",""]
["Блок открылка железобетонный К16П (ТП 503-7-015.90)",""]
["Портальная Стенка железобетонная для R=500 П10.14 (ТП 503-7-015.90)",""]
["Портальная Стенка железобетонная для R=500 П10.15 (ТП 503-7-015.90)",""]
["Портальная Стенка железобетонная для R=600 П12.17 (ТП 503-7-015.90)",""]
["Портальная Стенка железобетонная для R=600 П12.18 (ТП 503-7-015.90)",""]
["Портальная Стенка железобетонная для R=700 П14.16 (ТП 503-7-015.90)",""]
["Портальная Стенка железобетонная для R=700 П14.19 (ТП 503-7-015.90)",""]
["Портальная Стенка железобетонная для R=700 П14.20 (ТП 503-7-015.90)",""]
["Портальная Стенка железобетонная для R=800 П16.18 (ТП 503-7-015.90)",""]
["Портальная Стенка железобетонная для R=800 П16.21 (ТП 503-7-015.90)",""]
["Блок гасителя 1-го типа железобетонный 240-п.л (501-96)",""]
["Блок гасителя 1-го типа железобетонный 244-п.л (501-96)",""]
["Блок гасителя 2-го типа железобетонный 247-п.л (501-96)",""]
["Блок гасителя 2-го типа железобетонный 250-п.л (501-96)",""]
["Блок гасителя 1-го типа железобетонный №241 (501-96)",""]
["Блок гасителя 1-го типа железобетонный №242 (501-96)",""]
["Блок гасителя 1-го типа железобетонный №243 (501-96)",""]
["Блок гасителя 1-го типа железобетонный №245 (501-96)",""]
["Блок гасителя 1-го типа железобетонный №246 (501-96)",""]
["Блок гасителя 2-го типа железобетонный №248 (501-96)",""]
["Блок гасителя 2-го типа железобетонный №249 (501-96)",""]
["Блок гасителя 2-го типа железобетонный №251 (501-96)",""]
["Блок гасителя 2-го типа железобетонный №252 (501-96)",""]
["Блок гасителя 2-го типа железобетонный №253 (501-96)",""]
["Блок сопряжения лотков с круглыми Трубами 222-п.л (501-96)",""]
["Блок сопряжения лотков с круглыми Трубами 223-п.л (501-96)",""]
["Блок сопряжения лотков с круглыми Трубами 224-п.л (501-96)",""]
["Блок сопряжения лотков с круглыми Трубами 225-п.л (501-96)",""]
["Блок сопряжения лотков с круглыми Трубами 226-п.л (501-96)",""]
["Блок сопряжения лотков с круглыми Трубами 227-п.л (501-96)",""]
["Блок сопряжения лотков с круглыми Трубами №228 (501-96)",""]
["Блок сопряжения лотков с круглыми Трубами №229 (501-96)",""]
["Блок сопряжения лотков с круглыми Трубами №230 (501-96)",""]
["Блок сопряжения лотков с прямоугольными Трубами 231-п.л (501-96)",""]
["Блок сопряжения лотков с прямоугольными Трубами 232-п.л (501-96)",""]
["Блок сопряжения лотков с прямоугольными Трубами 233-п.л (501-96)",""]
["Блок сопряжения лотков с прямоугольными Трубами 234-п.л (501-96)",""]
["Блок сопряжения лотков с прямоугольными Трубами 235-п.л (501-96)",""]
["Блок сопряжения лотков с прямоугольными Трубами 236-п.л (501-96)",""]
["Блок сопряжения лотков с прямоугольными Трубами №237 (501-96)",""]
["Блок сопряжения лотков с прямоугольными Трубами №238 (501-96)",""]
["Блок сопряжения лотков с прямоугольными Трубами №239 (501-96)",""]
["Лоток железобетонный 200-п.л. (501-96)",""]
["Лоток железобетонный 201-п.л. (501-96)",""]
["Лоток железобетонный №202 (501-96)",""]
["Лоток железобетонный №203 (501-96)",""]
["Лоток железобетонный №204 (501-96)",""]
["Лоток железобетонный №205 (501-96)",""]
["Лоток железобетонный №206 (501-96)",""]
["Лоток железобетонный №207 (501-96)",""]
["Лоток железобетонный №208 (501-96)",""]
["Лоток железобетонный №209 (501-96)",""]
["Лоток железобетонный №210 (501-96)",""]
["Лоток железобетонный №211 (501-96)",""]
["Лоток железобетонный №212 (501-96)",""]
["Лоток железобетонный №213 (501-96)",""]
["Лоток железобетонный №214 (501-96)",""]
["Лоток железобетонный №215 (501-96)",""]
["Лоток железобетонный №216 (501-96)",""]
["Лоток железобетонный №217 (501-96)",""]
["Лоток железобетонный №218 (501-96)",""]
["Лоток железобетонный №219 (501-96)",""]
["Лоток железобетонный №220 (501-96)",""]
["Лоток железобетонный №221 (501-96)",""]
["Блок Фундамента железобетонный для R=610 Ф12.1 (ТП 503-7-015.90)",""]
["Блок Фундамента железобетонный для R=720 Ф12.2 (ТП 503-7-015.90)",""]
["Блок Фундамента железобетонный для R=820 Ф12.3 (ТП 503-7-015.90)",""]
["Блок Фундамента железобетонный для R=930 Ф12.4 (ТП 503-7-015.90)",""]
["Блок Фундамента железобетонный Ф14.1 (ТП 503-7-015.90)",""]
["Блок Фундамента железобетонный Ф14.2 (ТП 503-7-015.90)",""]
["Блок Фундамента железобетонный Ф14.3 (ТП 503-7-015.90)",""]
["Блок Фундамента железобетонный для R=610 Ф20.1 (ТП 503-7-015.90)",""]
["Блок Фундамента железобетонный для R=720 Ф20.2 (ТП 503-7-015.90)",""]
["Блок Фундамента железобетонный для R=820 Ф20.3 (ТП 503-7-015.90)",""]
["Блок Фундамента железобетонный для R=930 Ф20.4 (ТП 503-7-015.90)",""]
["Блок Фундамента железобетонный Ф22.1 (ТП 503-7-015.90)",""]
["Блок Фундамента железобетонный Ф22.2 (ТП 503-7-015.90)",""]
["Блок Фундамента железобетонный Ф22.3 (ТП 503-7-015.90)",""]
["Портальная Стенка железобетонная для R=800 П16.22 (ТП 503-7-015.90)",""]
["Блок Фундамента железобетонный Ф1.300 (серия 3.501.1-144)",""]
["Блок Фундамента железобетонный Ф1.400 (серия 3.501.1-144)",""]
["Блок Фундамента железобетонный Ф2.300 (серия 3.501.1-144)",""]
["Блок Фундамента железобетонный Ф2.400 (серия 3.501.1-144)",""]
["Блок Фундамента железобетонный Ф3.300 (серия 3.501.1-144)",""]
["Блок Фундамента железобетонный Ф3.400 (серия 3.501.1-144)",""]
["Блок Фундамента железобетонный Ф4.300 (серия 3.501.1-144)",""]
["Блок Фундамента железобетонный Ф4.400 (серия 3.501.1-144)",""]
["Блок Фундамента железобетонный Ф5 (серия 3.501.1-144)",""]
["Блок Фундамента железобетонный Ф6 (серия 3.501.1-144)",""]
["Блок Фундамента железобетонный Ф7 (серия 3.501.1-144)",""]
["Блок Фундамента железобетонный Ф8 (серия 3.501.1-144)",""]
["Блок экрана железобетонный БФ-1 (серия 3.501.1-144)",""]
["Блок экрана железобетонный Ф264 (серия 3.501.1-144)",""]
["Блок экрана железобетонный Ф267 (серия 3.501.1-144)",""]
["Звено оголовка ЗКП11.170 (серия 3.501.1-144)",""]
["Звено оголовка ЗКП12.170 (серия 3.501.1-144)",""]
["Звено оголовка ЗКП13.170 (серия 3.501.1-144)",""]
["Звено оголовка ЗКП14.170 (серия 3.501.1-144)",""]
["Звено оголовка ЗКП15.170 (серия 3.501.1-144)",""]
["Звено оголовка ЗКП16.170 (серия 3.501.1-144)",""]
["Звено оголовка ЗКП17.170 (серия 3.501.1-144)",""]
["Звено оголовка ЗКП18.170 (серия 3.501.1-144)",""]
["Звено трубы круглое на плоском опирании ЗКП1.100 (Стенка 12 см) ЗКП1.100 (серия 3.501.1-144)",""]
["Звено трубы круглое на плоском опирании ЗКП1.200 (Стенка 12 см) ЗКП1.200 (серия 3.501.1-144)",""]
["Звено трубы круглое на плоском опирании ЗКП1.300 (Стенка 12 см) ЗКП1.300 (серия 3.501.1-144)",""]
["Звено трубы круглое на плоском опирании ЗКП10.100 (Стенка 24 см) ЗКП10.100 (серия 3.501.1-144)",""]
["Звено трубы круглое на плоском опирании ЗКП10.200 (Стенка 24 см) ЗКП10.200 (серия 3.501.1-144)",""]
["Звено трубы круглое на плоском опирании ЗКП10.300 (Стенка 24 см) ЗКП10.300 (серия 3.501.1-144)",""]
["Звено трубы круглое на плоском опирании ЗКП19.100 (Стенка 12 см) ЗКП19.100 (серия 3.501.1-144)",""]
["Звено трубы круглое на плоском опирании ЗКП19.200 (Стенка 12 см) ЗКП19.200 (серия 3.501.1-144)",""]
["Звено трубы круглое на плоском опирании ЗКП19.300 (Стенка 12 см) ЗКП19.300 (серия 3.501.1-144)",""]
["Звено трубы круглое на плоском опирании ЗКП2.100 (серия 3.501.1-144)",""]
["Звено трубы круглое на плоском опирании ЗКП2.200 (серия 3.501.1-144)",""]
["Звено трубы круглое на плоском опирании ЗКП2.300 (Стенка 12 см) ЗКП2.300 (серия 3.501.1-144)",""]
["Звено трубы круглое на плоском опирании ЗКП3.100 (серия 3.501.1-144)",""]
["Звено трубы круглое на плоском опирании ЗКП3.200 (Стенка 12 см) ЗКП3.200 (серия 3.501.1-144)",""]
["Звено трубы круглое на плоском опирании ЗКП3.300 (Стенка 12 см) ЗКП3.300 (серия 3.501.1-144)",""]
["Звено трубы круглое на плоском опирании ЗКП4.100 (серия 3.501.1-144)",""]
["Звено трубы круглое на плоском опирании ЗКП4.200 (серия 3.501.1-144)",""]
["Звено трубы круглое на плоском опирании ЗКП4.300 (Стенка 14 см) ЗКП4.300 (серия 3.501.1-144)",""]
["Звено трубы круглое на плоском опирании ЗКП5.100 (серия 3.501.1-144)",""]
["Звено трубы круглое на плоском опирании ЗКП5.200 (Стенка 14 см) ЗКП5.200 (серия 3.501.1-144)",""]
["Звено трубы круглое на плоском опирании ЗКП5.300 (Стенка 14 см) ЗКП5.300 (серия 3.501.1-144)",""]
["Звено трубы круглое на плоском опирании ЗКП6.100 (серия 3.501.1-144)",""]
["Звено трубы круглое на плоском опирании ЗКП6.200 (серия 3.501.1-144)",""]
["Звено трубы круглое на плоском опирании ЗКП6.300 (Стенка 16 см) ЗКП6.300 (серия 3.501.1-144)",""]
["Звено трубы круглое на плоском опирании ЗКП7.100 (серия 3.501.1-144)",""]
["Звено трубы круглое на плоском опирании ЗКП7.200 (Стенка 22 см) ЗКП7.200 (серия 3.501.1-144)",""]
["Звено трубы круглое на плоском опирании ЗКП7.300 (Стенка 22 см) ЗКП7.300 (серия 3.501.1-144)",""]
["Звено трубы круглое на плоском опирании ЗКП8.100 (серия 3.501.1-144)",""]
["Звено трубы круглое на плоском опирании ЗКП8.200 (Стенка 16 см) ЗКП8.200 (серия 3.501.1-144)",""]
["Звено трубы круглое на плоском опирании ЗКП8.300 (Стенка 16 см) ЗКП8.300 (серия 3.501.1-144)",""]
["Звено трубы круглое на плоском опирании ЗКП9.100 (серия 3.501.1-144)",""]
["Звено трубы круглое на плоском опирании ЗКП9.200 (серия 3.501.1-144)",""]
["Звено трубы круглое на плоском опирании ЗКП9.300 (Стенка 20 см) ЗКП9.300 (серия 3.501.1-144)",""]
["Откосная Стенка железобетонная СТ108л (серия 3.501.1-144)",""]
["Откосная Стенка железобетонная СТ1л (серия 3.501.1-144)",""]
["Откосная Стенка железобетонная СТ2л (серия 3.501.1-144)",""]
["Откосная Стенка железобетонная СТ3л (серия 3.501.1-144)",""]
["Откосная Стенка железобетонная СТ58л (серия 3.501.1-144)",""]
["Откосная Стенка железобетонная СТ59л (серия 3.501.1-144)",""]
["Фундаментная Плита железобетонная №18 (серия 3.501.1-144)",""]
["Фундаментная Плита железобетонная №19 (серия 3.501.1-144)",""]
["Фундаментная Плита железобетонная №20 (серия 3.501.1-144)",""]
["Фундаментная Плита железобетонная №42 (серия 3.501.1-144)",""]
["Фундаментная Плита железобетонная №43 (серия 3.501.1-144)",""]
["Фундаментная Плита железобетонная №44 (серия 3.501.1-144)",""]
["Фундаментная Плита железобетонная №45 (серия 3.501.1-144)",""]
["Фундаментная Плита железобетонная №46 (серия 3.501.1-144)",""]
["Блок кордона железобетонный БК1 (серия 3.501.1-179.94)",""]
["Блок кордона железобетонный БК2 (серия 3.501.1-179.94)",""]
["Блок кордона железобетонный БК3 (серия 3.501.1-179.94)",""]
["Лоток железобетонный Л1.302-М (серия 3.501.1-179.94)",""]
["Лоток железобетонный Л1.403-М (серия 3.501.1-179.94)",""]
["Лоток железобетонный Л2.302-М (серия 3.501.1-179.94)",""]
["Лоток железобетонный Л2.403-М (серия 3.501.1-179.94)",""]
["Лоток железобетонный Л3.302-М (серия 3.501.1-179.94)",""]
["Лоток железобетонный Л3.403-М (серия 3.501.1-179.94)",""]
["Лоток железобетонный Л4.302-М (серия 3.501.1-179.94)",""]
["Лоток железобетонный Л4.403-М (серия 3.501.1-179.94)",""]
["Лоток железобетонный Л5.302-М (серия 3.501.1-179.94)",""]
["Лоток железобетонный Л5.403-М (серия 3.501.1-179.94)",""]
["Лоток железобетонный Л6.150-М (серия 3.501.1-179.94)",""]
["Лоток железобетонный Л6.201-М (серия 3.501.1-179.94)",""]
["Блок перекрытия железобетонный П1.210 (серия 3.501.1-179.94)",""]
["Блок перекрытия железобетонный средней части трубы П1.210-М (серия 3.501.1-179.94)",""]
["Блок перекрытия железобетонный П1.260 (серия 3.501.1-179.94)",""]
["Блок перекрытия железобетонный средней части трубы П1.260-М (серия 3.501.1-179.94)",""]
["Блок перекрытия железобетонный П1.360 (серия 3.501.1-179.94)",""]
["Блок перекрытия железобетонный средней части трубы П1.360-М (серия 3.501.1-179.94)",""]
["Блок перекрытия железобетонный П1.460 (серия 3.501.1-179.94)",""]
["Блок перекрытия железобетонный средней части трубы П1.460-М (серия 3.501.1-179.94)",""]
["Блок перекрытия железобетонный П1.560 (серия 3.501.1-179.94)",""]
["Блок перекрытия железобетонный средней части трубы П1.560-М (серия 3.501.1-179.94)",""]
["Блок перекрытия железобетонный П1.660 (серия 3.501.1-179.94)",""]
["Блок перекрытия железобетонный средней части трубы П1.660-М (серия 3.501.1-179.94)",""]
["Блок перекрытия железобетонный П2.210 (серия 3.501.1-179.94)",""]
["Блок перекрытия железобетонный средней части трубы П2.210-М (серия 3.501.1-179.94)",""]
["Блок перекрытия железобетонный П2.260 (серия 3.501.1-179.94)",""]
["Блок перекрытия железобетонный средней части трубы П2.260-М (серия 3.501.1-179.94)",""]
["Блок перекрытия железобетонный П2.360 (серия 3.501.1-179.94)",""]
["Блок перекрытия железобетонный средней части трубы П2.360-М (серия 3.501.1-179.94)",""]
["Блок перекрытия железобетонный П2.460 (серия 3.501.1-179.94)",""]
["Блок перекрытия железобетонный средней части трубы П2.460-М (серия 3.501.1-179.94)",""]
["Блок перекрытия железобетонный П2.560 (серия 3.501.1-179.94)",""]
["Блок перекрытия железобетонный средней части трубы П2.560-М (серия 3.501.1-179.94)",""]
["Блок перекрытия железобетонный П2.660 (серия 3.501.1-179.94)",""]
["Блок перекрытия железобетонный средней части трубы П2.660-М (серия 3.501.1-179.94)",""]
["Блок перекрытия железобетонный П3.210 (серия 3.501.1-179.94)",""]
["Блок перекрытия железобетонный оголовочной части трубы П3.210-М (серия 3.501.1-179.94)",""]
["Блок перекрытия железобетонный П3.260 (серия 3.501.1-179.94)",""]
["Блок перекрытия железобетонный оголовочной части трубы П3.260-М (серия 3.501.1-179.94)",""]
["Блок перекрытия железобетонный П3.360 (серия 3.501.1-179.94)",""]
["Блок перекрытия железобетонный оголовочной части трубы П3.360-М (серия 3.501.1-179.94)",""]
["Блок перекрытия железобетонный П3.460 (серия 3.501.1-179.94)",""]
["Блок перекрытия железобетонный оголовочной части трубы П3.460-М (серия 3.501.1-179.94)",""]
["Блок перекрытия железобетонный П3.560 (серия 3.501.1-179.94)",""]
["Блок перекрытия железобетонный оголовочной части трубы П3.560-М (серия 3.501.1-179.94)",""]
["Блок перекрытия железобетонный П3.660 (серия 3.501.1-179.94)",""]
["Блок перекрытия железобетонный оголовочной части трубы П3.660-М (серия 3.501.1-179.94)",""]
["Блок Фундамента железобетонный Ф10.150-М (серия 3.501.1-179.94)",""]
["Лоток железобетонный Л7.150-М (серия 3.501.1-179.94)",""]
["Лоток железобетонный Л7.201-М (серия 3.501.1-179.94)",""]
["Лоток железобетонный Л8.150-М (серия 3.501.1-179.94)",""]
["Лоток железобетонный Л8.201-М (серия 3.501.1-179.94)",""]
["Насадка железобетонная Н1.302 (серия 3.501.1-179.94)",""]
["Насадка железобетонная Н1.403 (серия 3.501.1-179.94)",""]
["Насадка железобетонная Н2.302 (серия 3.501.1-179.94)",""]
["Насадка железобетонная Н2.403 (серия 3.501.1-179.94)",""]
["Насадка железобетонная Н3.302 (серия 3.501.1-179.94)",""]
["Насадка железобетонная Н4.302 (серия 3.501.1-179.94)",""]
["Насадка железобетонная Н5.302 (серия 3.501.1-179.94)",""]
["Насадка железобетонная Н5.403 (серия 3.501.1-179.94)",""]
["Насадка железобетонная Н6.302 (серия 3.501.1-179.94)",""]
["Стенка Откосная железобетонная СТ10-п.л. (серия 3.501.1-179.94)",""]
["Стенка Откосная железобетонная СТ10-п.л.-М (серия 3.501.1-179.94)",""]
["Стенка Откосная железобетонная СТ11-п.л.-200М (серия 3.501.1-179.94)",""]
["Стенка Откосная железобетонная СТ11-п.л.-250М (серия 3.501.1-179.94)",""]
["Стенка Откосная железобетонная СТ11-п.л.-300М (серия 3.501.1-179.94)",""]
["Стенка Откосная железобетонная СТ11-п.л.-350М (серия 3.501.1-179.94)",""]
["Стенка Откосная железобетонная СТ11-п.л.-400М (серия 3.501.1-179.94)",""]
["Стенка Откосная железобетонная СТ12-п.л.-200М (серия 3.501.1-179.94)",""]
["Стенка Откосная железобетонная СТ12-п.л.-250М (серия 3.501.1-179.94)",""]
["Стенка Откосная железобетонная СТ12-п.л.-300М (серия 3.501.1-179.94)",""]
["Стенка Откосная железобетонная СТ12-п.л.-350М (серия 3.501.1-179.94)",""]
["Стенка Откосная железобетонная СТ12-п.л.-400М (серия 3.501.1-179.94)",""]
["Стенка Откосная железобетонная СТ13-п.л.-200М (серия 3.501.1-179.94)",""]
["Стенка Откосная железобетонная СТ13-п.л.-250М (серия 3.501.1-179.94)",""]
["Стенка Откосная железобетонная СТ13-п.л.-300М (серия 3.501.1-179.94)",""]
["Стенка Откосная железобетонная СТ13-п.л.-350М (серия 3.501.1-179.94)",""]
["Стенка Откосная железобетонная СТ13-п.л.-400М (серия 3.501.1-179.94)",""]
["Стенка Откосная железобетонная СТ14-п.л.-200М (серия 3.501.1-179.94)",""]
["Стенка Откосная железобетонная СТ14-п.л.-250М (серия 3.501.1-179.94)",""]
["Стенка Откосная железобетонная СТ14-п.л.-300М (серия 3.501.1-179.94)",""]
["Стенка Откосная железобетонная СТ14-п.л.-350М (серия 3.501.1-179.94)",""]
["Стенка Откосная железобетонная СТ15-п.л.-200М (серия 3.501.1-179.94)",""]
["Стенка Откосная железобетонная СТ15-п.л.-250М (серия 3.501.1-179.94)",""]
["Стенка Откосная железобетонная СТ15-п.л.-300М (серия 3.501.1-179.94)",""]
["Стенка Откосная железобетонная СТ5-п.л. (серия 3.501.1-179.94)",""]
["Стенка Откосная железобетонная СТ5-п.л.-М (серия 3.501.1-179.94)",""]
["Стенка Откосная железобетонная СТ6-п.л. (серия 3.501.1-179.94)",""]
["Стенка Откосная железобетонная СТ6-п.л.-М (серия 3.501.1-179.94)",""]
["Стенка Откосная железобетонная СТ7-п.л. (серия 3.501.1-179.94)",""]
["Стенка Откосная железобетонная СТ7-п.л.-М (серия 3.501.1-179.94)",""]
["Стенка Откосная железобетонная СТ8-п.л. (серия 3.501.1-179.94)",""]
["Стенка Откосная железобетонная СТ8-п.л.-М (серия 3.501.1-179.94)",""]
["Стенка Откосная железобетонная СТ9-п.л. (серия 3.501.1-179.94)",""]
["Стенка Откосная железобетонная СТ9-п.л.-М (серия 3.501.1-179.94)",""]
["Стенка бетонная СТ1.150 (серия 3.501.1-179.94)",""]
["Стенка железобетонная СТ1.150-М (серия 3.501.1-179.94)",""]
["Стенка бетонная СТ1.200 (серия 3.501.1-179.94)",""]
["Стенка железобетонная СТ1.200-М (серия 3.501.1-179.94)",""]
["Стенка бетонная СТ2.150 (серия 3.501.1-179.94)",""]
["Стенка железобетонная СТ2.150-М (серия 3.501.1-179.94)",""]
["Стенка бетонная СТ2.200 (серия 3.501.1-179.94)",""]
["Стенка железобетонная СТ2.200-М (серия 3.501.1-179.94)",""]
["Стенка бетонная СТ3.150 (серия 3.501.1-179.94)",""]
["Стенка железобетонная СТ3.150-М (серия 3.501.1-179.94)",""]
["Стенка бетонная СТ3.200 (серия 3.501.1-179.94)",""]
["Стенка железобетонная СТ3.200-М (серия 3.501.1-179.94)",""]
["Стенка бетонная СТ4.150 (серия 3.501.1-179.94)",""]
["Стенка железобетонная СТ4.150-М (серия 3.501.1-179.94)",""]
["Стенка бетонная СТ4.200 (серия 3.501.1-179.94)",""]
["Стенка железобетонная СТ4.200-М (серия 3.501.1-179.94)",""]
["Блок Фундамента железобетонный Ф10.201-М (серия 3.501.1-179.94)",""]
["Блок Фундамента железобетонный Ф11.302-М (серия 3.501.1-179.94)",""]
["Блок Фундамента железобетонный Ф11.403-М (серия 3.501.1-179.94)",""]
["Блок Фундамента железобетонный Ф4.240-М (серия 3.501.1-179.94)",""]
["Блок Фундамента железобетонный Ф4.340-М (серия 3.501.1-179.94)",""]
["Блок Фундамента железобетонный Ф5.200-М (серия 3.501.1-179.94)",""]
["Блок Фундамента железобетонный Ф5.240-М (серия 3.501.1-179.94)",""]
["Блок Фундамента железобетонный Ф5.300-М (серия 3.501.1-179.94)",""]
["Блок Фундамента железобетонный Ф5.340-М (серия 3.501.1-179.94)",""]
["Блок Фундамента железобетонный Ф5.390-М (серия 3.501.1-179.94)",""]
["Блок Фундамента железобетонный Ф6.200-М (серия 3.501.1-179.94)",""]
["Блок Фундамента железобетонный Ф6.240-М (серия 3.501.1-179.94)",""]
["Блок Фундамента железобетонный Ф6.300-М (серия 3.501.1-179.94)",""]
["Блок Фундамента железобетонный Ф6.340-М (серия 3.501.1-179.94)",""]
["Блок Фундамента железобетонный Ф6.390-М (серия 3.501.1-179.94)",""]
["Блок Фундамента железобетонный Ф7.190-М (серия 3.501.1-179.94)",""]
["Блок Фундамента железобетонный Ф7.260-М (серия 3.501.1-179.94)",""]
["Блок Фундамента железобетонный Ф7.320-М (серия 3.501.1-179.94)",""]
["Блок Фундамента железобетонный Ф8.205-М (серия 3.501.1-179.94)",""]
["Блок Фундамента железобетонный Ф8.225-М (серия 3.501.1-179.94)",""]
["Блок Фундамента железобетонный Ф9.302-М (серия 3.501.1-179.94)",""]
["Блок Фундамента железобетонный Ф9.403-М (серия 3.501.1-179.94)",""]
["Звено трубы прямоугольное ЗП27 (серия 3.501.1-177.93, выпуск 1-1)",""]
["Звено трубы прямоугольное ЗП28 (серия 3.501.1-177.93, выпуск 1-1)",""]
["Звено трубы прямоугольное ЗП29 (серия 3.501.1-177.93, выпуск 1-1)",""]
["Звено трубы прямоугольное ЗП30 (серия 3.501.1-177.93, выпуск 1-1)",""]
["Звено трубы прямоугольное ЗП31 (серия 3.501.1-177.93, выпуск 1-1)",""]
["Звено оголовка прямоугольное ЗП32 (серия 3.501.1-177.93, выпуск 1-1)",""]
["Звено оголовка прямоугольное ЗП33 (серия 3.501.1-177.93, выпуск 1-1)",""]
["Звено оголовка прямоугольное ЗП34 (серия 3.501.1-177.93, выпуск 1-1)",""]
["Звено оголовка прямоугольное ЗП35 (серия 3.501.1-177.93, выпуск 1-1)",""]
["Звено оголовка прямоугольное ЗП36 (серия 3.501.1-177.93, выпуск 1-1)",""]
["Звено оголовка прямоугольное ЗП37 (серия 3.501.1-177.93, выпуск 1-1)",""]
["Звено оголовка прямоугольное ЗП38 (серия 3.501.1-177.93, выпуск 1-1)",""]
["Звено трубы прямоугольное ЗП1.100 (серия 3.501.1-177.93, выпуск 1-1)",""]
["Звено трубы прямоугольное ЗП1.200 (серия 3.501.1-177.93, выпуск 1-1)",""]
["Звено трубы прямоугольное ЗП10.100 (серия 3.501.1-177.93, выпуск 1-1)",""]
["Звено трубы прямоугольное ЗП10.200 (серия 3.501.1-177.93, выпуск 1-1)",""]
["Звено трубы прямоугольное ЗП11.100 (серия 3.501.1-177.93, выпуск 1-1)",""]
["Звено трубы прямоугольное ЗП11.200 (серия 3.501.1-177.93, выпуск 1-1)",""]
["Звено трубы прямоугольное ЗП12.100 (серия 3.501.1-177.93, выпуск 1-1)",""]
["Звено трубы прямоугольное ЗП12.200 (серия 3.501.1-177.93, выпуск 1-1)",""]
["Звено трубы прямоугольное ЗП13.100 (серия 3.501.1-177.93, выпуск 1-1)",""]
["Звено трубы прямоугольное ЗП13.200 (серия 3.501.1-177.93, выпуск 1-1)",""]
["Звено трубы прямоугольное ЗП14.100 (серия 3.501.1-177.93, выпуск 1-1)",""]
["Звено трубы прямоугольное ЗП14.200 (серия 3.501.1-177.93, выпуск 1-1)",""]
["Звено трубы прямоугольное ЗП15.100 (серия 3.501.1-177.93, выпуск 1-1)",""]
["Звено трубы прямоугольное ЗП15.200 (серия 3.501.1-177.93, выпуск 1-1)",""]
["Звено трубы прямоугольное ЗП16.100 (серия 3.501.1-177.93, выпуск 1-1)",""]
["Звено трубы прямоугольное ЗП17.100 (серия 3.501.1-177.93, выпуск 1-1)",""]
["Звено трубы прямоугольное ЗП18.100 (серия 3.501.1-177.93, выпуск 1-1)",""]
["Звено трубы прямоугольное ЗП19.100 (серия 3.501.1-177.93, выпуск 1-1)",""]
["Звено трубы прямоугольное ЗП2.100 (серия 3.501.1-177.93, выпуск 1-1)",""]
["Звено трубы прямоугольное ЗП2.200 (серия 3.501.1-177.93, выпуск 1-1)",""]
["Звено трубы прямоугольное ЗП20.100 (серия 3.501.1-177.93, выпуск 1-1)",""]
["Звено трубы прямоугольное ЗП21.100 (серия 3.501.1-177.93, выпуск 1-1)",""]
["Звено трубы прямоугольное ЗП22.100 (серия 3.501.1-177.93, выпуск 1-1)",""]
["Звено трубы прямоугольное ЗП23.100 (серия 3.501.1-177.93, выпуск 1-1)",""]
["Звено трубы прямоугольное ЗП24.100 (серия 3.501.1-177.93, выпуск 1-1)",""]
["Звено трубы прямоугольное ЗП25.100 (серия 3.501.1-177.93, выпуск 1-1)",""]
["Звено трубы прямоугольное ЗП26.100 (серия 3.501.1-177.93, выпуск 1-1)",""]
["Звено трубы прямоугольное ЗП3.100 (серия 3.501.1-177.93, выпуск 1-1)",""]
["Звено трубы прямоугольное ЗП3.200 (серия 3.501.1-177.93, выпуск 1-1)",""]
["Звено трубы прямоугольное ЗП4.100 (серия 3.501.1-177.93, выпуск 1-1)",""]
["Звено трубы прямоугольное ЗП4.200 (серия 3.501.1-177.93, выпуск 1-1)",""]
["Звено трубы прямоугольное ЗП5.100 (серия 3.501.1-177.93, выпуск 1-1)",""]
["Звено трубы прямоугольное ЗП5.200 (серия 3.501.1-177.93, выпуск 1-1)",""]
["Звено трубы прямоугольное ЗП6.100 (серия 3.501.1-177.93, выпуск 1-1)",""]
["Звено трубы прямоугольное ЗП6.200 (серия 3.501.1-177.93, выпуск 1-1)",""]
["Звено трубы прямоугольное ЗП7.100 (серия 3.501.1-177.93, выпуск 1-1)",""]
["Звено трубы прямоугольное ЗП7.200 (серия 3.501.1-177.93, выпуск 1-1)",""]
["Звено трубы прямоугольное ЗП8.100 (серия 3.501.1-177.93, выпуск 1-1)",""]
["Звено трубы прямоугольное ЗП8.200 (серия 3.501.1-177.93, выпуск 1-1)",""]
["Звено трубы прямоугольное ЗП9.100 (серия 3.501.1-177.93, выпуск 1-1)",""]
["Звено трубы прямоугольное ЗП9.200 (серия 3.501.1-177.93, выпуск 1-1)",""]
["Кордонный Блок железобетонный К1 (серия 3.501.1-177.93, выпуск 1-1)",""]
["Кордонный Блок железобетонный К2 (серия 3.501.1-177.93, выпуск 1-1)",""]
["Кордонный Блок железобетонный К3 (серия 3.501.1-177.93, выпуск 1-1)",""]
["Кордонный Блок железобетонный К4 (серия 3.501.1-177.93, выпуск 1-1)",""]
["Кордонный Блок железобетонный К5 (серия 3.501.1-177.93, выпуск 1-1)",""]
["Откосная Стенка железобетонная СТ1 (серия 3.501.1-177.93, выпуск 1-1)",""]
["Откосная Стенка железобетонная СТ2 (серия 3.501.1-177.93, выпуск 1-1)",""]
["Откосная Стенка железобетонная СТ3 (серия 3.501.1-177.93, выпуск 1-1)",""]
["Откосная Стенка железобетонная СТ4 (серия 3.501.1-177.93, выпуск 1-1)",""]
["Фундаментная Плита Ф1 (серия 3.501.1-177.93, выпуск 1-1)",""]
["Фундаментная Плита Ф10.201 (серия 3.501.1-177.93, выпуск 1-1)",""]
["Фундаментная Плита Ф10.302 (серия 3.501.1-177.93, выпуск 1-1)",""]
["Фундаментная Плита Ф11 (серия 3.501.1-177.93, выпуск 1-1)",""]
["Фундаментная Плита Ф12 (серия 3.501.1-177.93, выпуск 1-1)",""]
["Фундаментная Плита Ф13 (серия 3.501.1-177.93, выпуск 1-1)",""]
["Фундаментная Плита Ф2 (серия 3.501.1-177.93, выпуск 1-1)",""]
["Фундаментная Плита Ф3 (серия 3.501.1-177.93, выпуск 1-1)",""]
["Фундаментная Плита Ф4 (серия 3.501.1-177.93, выпуск 1-1)",""]
["Фундаментная Плита Ф5 (серия 3.501.1-177.93, выпуск 1-1)",""]
["Фундаментная Плита Ф6.201 (серия 3.501.1-177.93, выпуск 1-1)",""]
["Фундаментная Плита Ф6.302 (серия 3.501.1-177.93, выпуск 1-1)",""]
["Фундаментная Плита Ф6.403 (серия 3.501.1-177.93, выпуск 1-1)",""]
["Фундаментная Плита Ф7.201 (серия 3.501.1-177.93, выпуск 1-1)",""]
["Фундаментная Плита Ф7.302 (серия 3.501.1-177.93, выпуск 1-1)",""]
["Фундаментная Плита Ф7.403 (серия 3.501.1-177.93, выпуск 1-1)",""]
["Фундаментная Плита Ф8.201 (серия 3.501.1-177.93, выпуск 1-1)",""]
["Фундаментная Плита Ф8.302 (серия 3.501.1-177.93, выпуск 1-1)",""]
["Фундаментная Плита Ф8.403 (серия 3.501.1-177.93, выпуск 1-1)",""]
["Фундаментная Плита Ф9.201 (серия 3.501.1-177.93, выпуск 1-1)",""]
["Фундаментная Плита Ф9.302 (серия 3.501.1-177.93, выпуск 1-1)",""]
["Фундаментная Плита Ф9.403 (серия 3.501.1-177.93, выпуск 1-1)",""]
["Кордонный Блок железобетонный КБ1 (серия 3.501-104)",""]
["Кордонный Блок железобетонный КБ2 (серия 3.501-104)",""]
["Кордонный Блок железобетонный КБ3 (серия 3.501-104)",""]
["Кордонный Блок железобетонный КБ4 (серия 3.501-104)",""]
["Кордонный Блок железобетонный КБ5 (серия 3.501-104)",""]
["Откосное крыло железобетонное №108п,л (серия 3.501-104)",""]
["Откосное крыло железобетонное №57п,л (серия 3.501-104)",""]
["Откосное крыло железобетонное №58п,л (серия 3.501-104)",""]
["Откосное крыло железобетонное №59п,л (серия 3.501-104)",""]
["Звено прямоугольное средней части трубы 96 (серия 3.501-104)",""]
["Звено оголовка прямоугольное №100 (серия 3.501-104)",""]
["Звено оголовка прямоугольное №101 (серия 3.501-104)",""]
["Звено оголовка прямоугольное №102 (серия 3.501-104)",""]
["Звено оголовка прямоугольное №103 (серия 3.501-104)",""]
["Звено оголовка прямоугольное №104 (серия 3.501-104)",""]
["Звено оголовка прямоугольное №105 (серия 3.501-104)",""]
["Звено оголовка прямоугольное №106 (серия 3.501-104)",""]
["Звено оголовка прямоугольное №107 (серия 3.501-104)",""]
["Звено прямоугольное средней части трубы №47 (серия 3.501-104)",""]
["Звено прямоугольное средней части трубы №48 (серия 3.501-104)",""]
["Звено прямоугольное средней части трубы №49 (серия 3.501-104)",""]
["Звено прямоугольное средней части трубы №50 (серия 3.501-104)",""]
["Звено оголовка прямоугольное №51 (серия 3.501-104)",""]
["Звено оголовка прямоугольное №52 (серия 3.501-104)",""]
["Звено оголовка прямоугольное №53 (серия 3.501-104)",""]
["Звено оголовка прямоугольное №54 (серия 3.501-104)",""]
["Звено оголовка прямоугольное №55 (серия 3.501-104)",""]
["Звено оголовка прямоугольное №56 (серия 3.501-104)",""]
["Звено прямоугольное средней части трубы №81 (серия 3.501-104)",""]
["Звено прямоугольное средней части трубы №82 (серия 3.501-104)",""]
["Звено прямоугольное средней части трубы №83 (серия 3.501-104)",""]
["Звено прямоугольное средней части трубы №84 (серия 3.501-104)",""]
["Звено прямоугольное средней части трубы №85 (серия 3.501-104)",""]
["Звено прямоугольное средней части трубы №86 (серия 3.501-104)",""]
["Звено прямоугольное средней части трубы №87 (серия 3.501-104)",""]
["Звено прямоугольное средней части трубы №88 (серия 3.501-104)",""]
["Звено прямоугольное средней части трубы №89 (серия 3.501-104)",""]
["Звено прямоугольное средней части трубы №90 (серия 3.501-104)",""]
["Звено прямоугольное средней части трубы №91 (серия 3.501-104)",""]
["Звено прямоугольное средней части трубы №92 (серия 3.501-104)",""]
["Звено прямоугольное средней части трубы №93 (серия 3.501-104)",""]
["Звено прямоугольное средней части трубы №94 (серия 3.501-104)",""]
["Звено прямоугольное средней части трубы №95 (серия 3.501-104)",""]
["Звено оголовка средней части трубы №97 (серия 3.501-104)",""]
["Звено оголовка средней части трубы №98 (серия 3.501-104)",""]
["Звено оголовка средней части трубы №99 (серия 3.501-104)",""]
["Фундаментная Плита железобетонная №1 (серия 3.501-104)",""]
["Фундаментная Плита железобетонная №18 (серия 3.501-104)",""]
["Фундаментная Плита железобетонная №19 (серия 3.501-104)",""]
["Фундаментная Плита железобетонная №2 (серия 3.501-104)",""]
["Фундаментная Плита железобетонная №20 (серия 3.501-104)",""]
["Фундаментная Плита железобетонная №3 (серия 3.501-104)",""]
["Фундаментная Плита железобетонная №42 (серия 3.501-104)",""]
["Фундаментная Плита железобетонная №43 (серия 3.501-104)",""]
["Фундаментная Плита железобетонная №44 (серия 3.501-104)",""]
["Фундаментная Плита железобетонная №45 (серия 3.501-104)",""]
["Фундаментная Плита железобетонная №46 (серия 3.501-104)",""]
["Блок лотка железобетонный с гофром 100х20 мм Л-1 (серия 3.501.3-186.09)",""]
["Лекальный Блок железобетонный с гофром 100х20 мм Ф1п.л-12-150 (серия 3.501.3-186.09)",""]
["Лекальный Блок железобетонный с гофром 100х20 мм Ф1п.л-15-165 (серия 3.501.3-186.09)",""]
["Лекальный Блок железобетонный с гофром 100х20 мм Ф1п.л-20-200 (серия 3.501.3-186.09)",""]
["Лекальный Блок железобетонный с гофром 100х20 мм Ф1п.л-30-275 (серия 3.501.3-186.09)",""]
["Лекальный Блок железобетонный с гофром 100х20 мм Ф1п.л.10-130 (серия 3.501.3-186.09)",""]
["Лекальный Блок железобетонный с гофром 100х20 мм Ф1п.л.25-235 (серия 3.501.3-186.09)",""]
["Лекальный Блок железобетонный с гофром 100х20 мм Ф2-10-205 (серия 3.501.3-186.09)",""]
["Лекальный Блок железобетонный с гофром 100х20 мм Ф2-12-225 (серия 3.501.3-186.09)",""]
["Блок лотка железобетонный с гофром 130х32,5 мм Л1 (серия 3.501.3-183.01)",""]
["Блок лотка железобетонный с гофром 130х32,5 мм Л2 (серия 3.501.3-183.01)",""]
["Лекальный Блок железобетонный с гофром 130х32,5 мм Ф1п.л-10-120 (серия 3.501.3-183.01)",""]
["Лекальный Блок железобетонный с гофром 130х32,5 мм Ф1п.л-10-90 (серия 3.501.3-183.01)",""]
["Лекальный Блок железобетонный с гофром 130х32,5 мм Ф1п.л-15-120 (серия 3.501.3-183.01)",""]
["Лекальный Блок железобетонный с гофром 130х32,5 мм Ф1п.л-15-90 (серия 3.501.3-183.01)",""]
["Лекальный Блок железобетонный с гофром 130х32,5 мм Ф1п.л-20-120 (серия 3.501.3-183.01)",""]
["Лекальный Блок железобетонный с гофром 130х32,5 мм Ф1п.л-20-90 (серия 3.501.3-183.01)",""]
["Лекальный Блок железобетонный с гофром 130х32,5 мм Ф1п.л-25-120 (серия 3.501.3-183.01)",""]
["Лекальный Блок железобетонный с гофром 130х32,5 мм Ф1п.л-25-90 (серия 3.501.3-183.01)",""]
["Лекальный Блок железобетонный с гофром 130х32,5 мм Ф1п.л-30-120 (серия 3.501.3-183.01)",""]
["Лекальный Блок железобетонный с гофром 130х32,5 мм Ф1п.л-30-90 (серия 3.501.3-183.01)",""]
["Лекальный Блок железобетонный с гофром 130х32,5 мм Ф1п.л-35-120 (серия 3.501.3-183.01)",""]
["Лекальный Блок железобетонный с гофром 130х32,5 мм Ф1п.л-35-90 (серия 3.501.3-183.01)",""]
["Лекальный Блок железобетонный с гофром 130х32,5 мм Ф2-10-120 (серия 3.501.3-183.01)",""]
["Лекальный Блок железобетонный с гофром 130х32,5 мм Ф2-10-90 (серия 3.501.3-183.01)",""]
["Лекальный Блок железобетонный с гофром 130х32,5 мм Ф2-15-120 (серия 3.501.3-183.01)",""]
["Блок лотка железобетонный с гофром 150х50 мм Л1 (серия 3.501.3-185.03)",""]
["Лекальный Блок железобетонный с гофром 150х50 мм Ф1п.л-10-130 (серия 3.501.3-185.03)",""]
["Лекальный Блок железобетонный с гофром 150х50 мм Ф1п.л-15-165 (серия 3.501.3-185.03)",""]
["Лекальный Блок железобетонный с гофром 150х50 мм Ф1п.л-20-200 (серия 3.501.3-185.03)",""]
["Лекальный Блок железобетонный с гофром 150х50 мм Ф1п.л-25-235 (серия 3.501.3-185.03)",""]
["Лекальный Блок железобетонный с гофром 150х50 мм Ф1п.л-30-275 (серия 3.501.3-185.03)",""]
["Лекальный Блок железобетонный с гофром 150х50 мм Ф1п.л-35-227 (серия 3.501.3-185.03)",""]
["Лекальный Блок железобетонный с гофром 150х50 мм Ф1п.л-35-310 (серия 3.501.3-185.03)",""]
["Лекальный Блок железобетонный с гофром 150х50 мм Ф1п.л-40-252 (серия 3.501.3-185.03)",""]
["Лекальный Блок железобетонный с гофром 150х50 мм Ф1п.л-40-340 (серия 3.501.3-185.03)",""]
["Лекальный Блок железобетонный с гофром 150х50 мм Ф2-10-205 (серия 3.501.3-185.03)",""]
["Блок экрана железобетонный с гофром 100х20 мм Ф-3 (серия 3.501.3-186.09)",""]
["Лекальный Блок железобетонный с гофром 100х20 мм Ф2-15-255 (серия 3.501.3-186.09)",""]
["Лекальный Блок железобетонный с гофром 100х20 мм Ф2-20-305 (серия 3.501.3-186.09)",""]
["Лекальный Блок железобетонный с гофром 100х20 мм Ф2-25-355 (серия 3.501.3-186.09)",""]
["Лекальный Блок железобетонный с гофром 100х20 мм Ф2-30-405 (серия 3.501.3-186.09)",""]
["Блок экрана железобетонный с гофром 130х32,5 мм Ф3 (серия 3.501.3-183.01)",""]
["Лекальный Блок железобетонный с гофром 130х32,5 мм Ф2-15-90 (серия 3.501.3-183.01)",""]
["Лекальный Блок железобетонный с гофром 130х32,5 мм Ф2-20-120 (серия 3.501.3-183.01)",""]
["Лекальный Блок железобетонный с гофром 130х32,5 мм Ф2-20-90 (серия 3.501.3-183.01)",""]
["Лекальный Блок железобетонный с гофром 130х32,5 мм Ф2-25-120 (серия 3.501.3-183.01)",""]
["Лекальный Блок железобетонный с гофром 130х32,5 мм Ф2-25-90 (серия 3.501.3-183.01)",""]
["Лекальный Блок железобетонный с гофром 130х32,5 мм Ф2-30-120 (серия 3.501.3-183.01)",""]
["Лекальный Блок железобетонный с гофром 130х32,5 мм Ф2-30-90 (серия 3.501.3-183.01)",""]
["Лекальный Блок железобетонный с гофром 130х32,5 мм Ф2-35-120 (серия 3.501.3-183.01)",""]
["Лекальный Блок железобетонный с гофром 130х32,5 мм Ф2-35-90 (серия 3.501.3-183.01)",""]
["Блок экрана железобетонный с гофром 150х50 мм Ф3 (серия 3.501.3-185.03)",""]
["Лекальный Блок железобетонный с гофром 150х50 мм Ф2-15-255 (серия 3.501.3-185.03)",""]
["Лекальный Блок железобетонный с гофром 150х50 мм Ф2-20-305 (серия 3.501.3-185.03)",""]
["Лекальный Блок железобетонный с гофром 150х50 мм Ф2-25-355 (серия 3.501.3-185.03)",""]
["Лекальный Блок железобетонный с гофром 150х50 мм Ф2-30-405 (серия 3.501.3-185.03)",""]

{"sheet":"Лист2","index":1,"n_rows":0,"n_cols":0,"rows_kept":0,"cut":false,"hidden":false,"merged":[]}

{"sheet":"Лист3","index":2,"n_rows":0,"n_cols":0,"rows_kept":0,"cut":false,"hidden":false,"merged":[]}